bitfinex-derivatives/quotes_BTCF0:USTF0_20250509
["timestamp","ask_amount","ask_price","bid_price","bid_amount"]
[1746829939359,0.28029204,103110.0,103100.0,1.62394369]
[1746829939561,0.28029204,103110.0,103100.0,1.55266639]
[1746829940860,0.24849204,103110.0,103100.0,1.55266639]
[1746829942061,0.24849204,103110.0,103100.0,1.55266999]
[1746829943351,0.28139204,103110.0,103100.0,1.55266999]
[1746829943866,0.28139204,103110.0,103100.0,1.55266991]
[1746829946962,0.28139204,103110.0,103100.0,0.83106991]
[1746829947162,0.28139204,103110.0,103100.0,1.55266991]
[1746829947562,0.28139204,103110.0,103100.0,1.55266255]
[1746829948669,0.34748412,103110.0,103100.0,1.62393985]
[1746829949057,0.34748412,103110.0,103100.0,1.55266255]
[1746829953267,0.34748412,103110.0,103100.0,1.55265923]
[1746829955068,0.34748412,103110.0,103100.0,1.5379952]
[1746829955271,0.24849204,103110.0,103100.0,1.55265817]
[1746829956568,0.87372724,103110.0,103100.0,1.11525817]
[1746829956760,0.93722724,103110.0,103100.0,1.23261817]
[1746829956961,0.77566934,103110.0,103100.0,1.23261817]
[1746829957369,0.96962724,103110.0,103100.0,1.23261817]
[1746829957572,0.77566934,103110.0,103100.0,1.23261817]
[1746829958372,0.77366934,103110.0,103100.0,1.23261817]
[1746829958572,0.96962724,103110.0,103100.0,1.23261817]
[1746829958872,0.96962724,103110.0,103100.0,1.23261086]
[1746829961473,1.06861932,103110.0,103100.0,1.23261086]
[1746829964575,0.99439728,103110.0,103100.0,1.23261086]
[1746829968182,0.92311998,103110.0,103100.0,1.23264368]
[1746829968688,0.99439728,103110.0,103100.0,1.23264368]
[1746829969295,0.99439728,103110.0,103100.0,1.11528368]
[1746829969595,0.99439728,103110.0,103100.0,0.39368368]
[1746829969596,1.09138528,103110.0,103100.0,0.39368368]
[1746829970089,1.09138528,103110.0,103100.0,0.39368199]
[1746829970995,1.09138528,103110.0,103100.0,0.3936813]
[1746829971493,1.09138528,103110.0,103100.0,0.39368122]
[1746829972195,1.09138528,103110.0,103100.0,0.39367992]
[1746829973094,1.09138528,103110.0,103100.0,0.39367677]
[1746829973992,1.09138528,103110.0,103100.0,0.39367238]
[1746829974695,1.09138528,103110.0,103100.0,0.39367129]
[1746829975195,1.09138528,103110.0,103100.0,0.39367073]
[1746829975393,1.09138528,103110.0,103100.0,0.39367068]
[1746829975595,0.99439728,103110.0,103100.0,0.39367068]
[1746829976297,0.99439728,103110.0,103100.0,0.3789952]
[1746829976492,0.99439728,103110.0,103100.0,0.39367195]
[1746829976687,0.99439728,103110.0,103100.0,0.39367185]
[1746829977689,0.99439728,103110.0,103100.0,0.39367218]
[1746829977885,0.99439728,103110.0,103100.0,0.39367125]
[1746829982701,0.99439728,103110.0,103100.0,0.39365923]
[1746829984399,1.42647458,103110.0,103100.0,0.20695253]
[1746829984594,0.1939955,103090.0,103080.0,1.9306411]
[1746829984900,0.5539955,103090.0,103080.0,1.9791442]
[1746829985100,0.8161728,103090.0,103080.0,0.9147727]
[1746829985698,0.8161728,103090.0,103080.0,0.7692669]
[1746829985899,0.8799728,103090.0,103080.0,0.7692669]
[1746829986299,0.8799728,103090.0,103080.0,0.7712669]
[1746829986601,0.8799728,103090.0,103080.0,0.7742669]
[1746829988004,1.05307481,103090.0,103080.0,0.7742669]
[1746829988307,1.06034481,103090.0,103080.0,0.8675669]
[1746829989899,1.06034481,103090.0,103080.0,0.5017669]
[1746829990100,1.06034481,103090.0,103080.0,0.8635669]
[1746829991406,0.98623488,103090.0,103080.0,0.8635669]
[1746829993903,1.38721218,103090.0,103080.0,0.1912885]
[1746829994094,1.05761218,103090.0,103080.0,0.1912885]
[1746829994294,1.41841218,103090.0,103080.0,0.1912885]
[1746829994498,1.34713488,103090.0,103080.0,0.1912885]
[1746829994995,0.98633488,103090.0,103080.0,0.1912885]
[1746829995802,0.98733488,103090.0,103080.0,0.1902885]
[1746829996002,0.98733488,103090.0,103080.0,0.3843028]
[1746829996911,0.98933488,103090.0,103080.0,0.3843028]
[1746829997711,0.98933488,103090.0,103080.0,0.1902885]
[1746829998512,1.10757488,103090.0,103080.0,0.1902885]
[1746830000013,1.10757488,103090.0,103080.0,0.3843028]
[1746830001706,1.10957488,103090.0,103080.0,0.3843028]
[1746830002317,1.10757488,103090.0,103080.0,0.3843028]
[1746830002613,1.11057488,103090.0,103080.0,0.3843028]
[1746830007316,1.10757488,103090.0,103080.0,0.3843028]
[1746830007513,1.10857488,103090.0,103080.0,0.3843028]
[1746830007714,1.10657488,103090.0,103080.0,0.3843028]
[1746830010219,1.10657488,103090.0,103080.0,0.1902885]
[1746830010413,1.10657488,103090.0,103080.0,0.3843028]
[1746830013120,1.13119592,103090.0,103080.0,0.3843028]
[1746830013320,1.53209389,103090.0,103080.0,0.3843028]
[1746830014123,1.53209389,103090.0,103080.0,0.39921758]
[1746830015725,1.53209389,103090.0,103080.0,0.20523057]
[1746830017227,1.67983518,103090.0,103080.0,0.20523057]
[1746830018729,0.194052,103060.0,103050.0,1.7390473]
[1746830018924,0.6153293,103060.0,103050.0,2.0125191]
[1746830019119,0.736452,103060.0,103050.0,0.94800642]
[1746830019320,0.704052,103060.0,103050.0,0.94800642]
[1746830020229,0.704052,103060.0,103050.0,0.98350642]
[1746830020927,0.704052,103060.0,103050.0,0.98750642]
[1746830021624,0.704052,103060.0,103050.0,1.05878372]
[1746830021824,0.704052,103060.0,103050.0,1.09148372]
[1746830023834,0.77822054,103060.0,103050.0,1.09148372]
[1746830029336,0.80982054,103060.0,103050.0,1.09148372]
[1746830030638,0.80982054,103060.0,103050.0,1.10628506]
[1746830034540,0.80982054,103060.0,103050.0,1.10628269]
[1746830036245,0.80982054,103060.0,103050.0,1.10628119]
[1746830036435,0.80982054,103060.0,103050.0,1.46708119]
[1746830038141,0.80982054,103060.0,103050.0,1.46708095]
[1746830038941,0.80982054,103060.0,103050.0,1.46562535]
[1746830040042,0.80982054,103060.0,103050.0,1.46562652]
[1746830041539,0.81709054,103060.0,103050.0,1.46562652]
[1746830043140,0.81709054,103060.0,103050.0,1.46562737]
[1746830046545,0.84749054,103060.0,103050.0,1.46562737]
[1746830047947,0.84749054,103060.0,103050.0,1.4656383]
[1746830050040,0.84749054,103060.0,103050.0,1.394361]
[1746830051949,0.84749054,103060.0,103050.0,1.389361]
[1746830052251,0.84749054,103060.0,103050.0,1.392361]
[1746830052848,0.87889054,103060.0,103050.0,1.390361]
[1746830053045,0.87889054,103060.0,103050.0,1.386361]
[1746830053247,0.87889054,103060.0,103050.0,1.387361]
[1746830053446,0.87889054,103060.0,103050.0,1.37255082]
[1746830054251,0.87889054,103060.0,103050.0,1.3873149]
[1746830054953,0.87889054,103060.0,103050.0,0.6657149]
[1746830055148,0.87889054,103060.0,103050.0,1.3873149]
[1746830055854,0.87889054,103060.0,103050.0,1.0265149]
[1746830056045,0.87889054,103060.0,103050.0,1.3873149]
[1746830056542,0.87889054,103060.0,103050.0,1.37255082]
[1746830056750,0.87889054,103060.0,103050.0,1.38731522]
[1746830057756,0.87889054,103060.0,103050.0,0.66571522]
[1746830057942,0.87889054,103060.0,103050.0,1.38731522]
[1746830058641,0.87889054,103060.0,103050.0,1.38731494]
[1746830058841,0.90361339,103060.0,103050.0,1.38731494]
[1746830061355,0.90361339,103060.0,103050.0,0.66571494]
[1746830061552,0.97489069,103060.0,103050.0,1.02651494]
[1746830062354,0.97489069,103060.0,103050.0,1.02651698]
[1746830062557,0.90361339,103060.0,103050.0,1.02651698]
[1746830066055,0.90361339,103060.0,103050.0,1.02571698]
[1746830068157,0.90361339,103060.0,103050.0,0.66491698]
[1746830068359,0.90361339,103060.0,103050.0,1.02571698]
[1746830069950,0.90361339,103060.0,103050.0,1.02572054]
[1746830073663,0.90361339,103060.0,103050.0,1.02572085]
[1746830081168,0.90361339,103060.0,103050.0,1.02571794]
[1746830083569,0.90361339,103060.0,103050.0,0.66491794]
[1746830083776,0.90361339,103060.0,103050.0,1.02571794]
[1746830086970,0.90361339,103060.0,103050.0,0.66491794]
[1746830087171,0.90361339,103060.0,103050.0,1.02571794]
[1746830088478,0.97489069,103060.0,103050.0,1.02571794]
[1746830089081,0.90361339,103060.0,103050.0,1.02571794]
[1746830089379,0.90361339,103060.0,103050.0,0.90827794]
[1746830089573,0.90361339,103060.0,103050.0,1.02563794]
[1746830090282,0.90361339,103060.0,103050.0,1.02563649]
[1746830091880,0.90361339,103060.0,103050.0,1.01087082]
[1746830092577,0.90361339,103060.0,103050.0,0.66483987]
[1746830092775,0.90361339,103060.0,103050.0,1.02563987]
[1746830093174,0.90461339,103060.0,103050.0,1.02463987]
[1746830093780,0.90561339,103060.0,103050.0,1.02363987]
[1746830094181,0.90561339,103060.0,103050.0,1.02364105]
[1746830094383,0.90461339,103060.0,103050.0,1.02564105]
[1746830094576,0.90361339,103060.0,103050.0,1.02564105]
[1746830094775,0.90361339,103060.0,103050.0,1.02864105]
[1746830095981,0.90361339,103060.0,103050.0,1.0286412]
[1746830097490,0.90361339,103060.0,103050.0,0.6678412]
[1746830097787,0.90361339,103060.0,103050.0,1.0286412]
[1746830102081,0.90361339,103060.0,103050.0,0.6890377]
[1746830102276,0.90361339,103060.0,103050.0,0.1167777]
[1746830102277,1.40696799,103060.0,103050.0,0.1167777]
[1746830102475,1.40696799,103060.0,103050.0,0.3108485]
[1746830102774,1.40696799,103060.0,103050.0,0.1167777]
[1746830103178,1.40696799,103060.0,103050.0,0.3108485]
[1746830103379,1.40696799,103060.0,103050.0,0.1167777]
[1746830104684,1.40696799,103060.0,103050.0,0.11677045]
[1746830104884,1.47824529,103060.0,103050.0,0.10200732]
[1746830105178,1.40696799,103060.0,103050.0,0.10200732]
[1746830105384,1.42129447,103060.0,103050.0,0.10200732]
[1746830105586,1.42329447,103060.0,103050.0,0.09900732]
[1746830105887,1.40896799,103060.0,103050.0,0.09900732]
[1746830106290,1.40896799,103060.0,103050.0,0.09700732]
[1746830106493,1.41196799,103060.0,103050.0,0.09700732]
[1746830106891,1.40896799,103060.0,103050.0,0.09700732]
[1746830107091,1.41196799,103060.0,103050.0,0.09700732]
[1746830107285,1.43668972,103060.0,103050.0,0.09700732]
[1746830110386,1.53372572,103060.0,103050.0,0.09700732]
[1746830110584,0.1940896,103040.0,103030.0,0.7479457]
[1746830110783,0.6353669,103040.0,103030.0,0.76267813]
[1746830111092,0.7300669,103040.0,103030.0,0.82913252]
[1746830111779,0.8900669,103040.0,103030.0,0.83013252]
[1746830113792,0.8900669,103040.0,103030.0,0.83113252]
[1746830114984,0.8900669,103040.0,103030.0,0.86153252]
[1746830115591,0.8900669,103040.0,103030.0,0.86152251]
[1746830115791,0.8973369,103040.0,103030.0,0.86152251]
[1746830116794,0.8973369,103040.0,103030.0,0.50072251]
[1746830117397,0.9686142,103040.0,103030.0,0.17917681]
[1746830117589,0.9686142,103040.0,103030.0,0.14677681]
[1746830118894,0.9686142,103040.0,103030.0,0.11377681]
[1746830119096,0.9686142,103040.0,103030.0,0.11377829]
[1746830119399,1.3294142,103040.0,103030.0,0.09905439]
[1746830119796,0.1941085,103030.0,103020.0,0.00397962]
[1746830120100,1.4392831,103030.0,103020.0,0.01870505]
[1746830120601,1.3680058,103030.0,103020.0,0.11575944]
[1746830120802,1.3680058,103030.0,103020.0,0.10103401]
[1746830120994,1.4392831,103030.0,103020.0,0.10103401]
[1746830121194,1.4392831,103030.0,103020.0,0.10303401]
[1746830121397,1.4392831,103030.0,103020.0,0.10603401]
[1746830121693,1.3680058,103030.0,103020.0,0.10603401]
[1746830123698,1.4392831,103030.0,103020.0,0.10603401]
[1746830125504,1.3680058,103030.0,103020.0,0.10603401]
[1746830125800,1.3680058,103030.0,103020.0,0.13883401]
[1746830127197,1.46670378,103030.0,103020.0,0.13883401]
[1746830127502,1.17718108,103030.0,103020.0,0.13883401]
[1746830127702,1.53798108,103030.0,103020.0,0.13883401]
[1746830131705,1.65530108,103030.0,103020.0,0.13883401]
[1746830134105,1.29450108,103030.0,103020.0,0.13883401]
[1746830134405,1.65530108,103030.0,103020.0,0.13883401]
[1746830136203,1.42066108,103030.0,103020.0,0.13883401]
[1746830136510,1.04280378,103030.0,103020.0,0.41000122]
[1746830136702,0.62869798,103030.0,103020.0,1.03067582]
[1746830136902,0.45280648,103030.0,103020.0,1.20939852]
[1746830137099,0.45280648,103030.0,103020.0,0.95939852]
[1746830137300,0.67280648,103030.0,103020.0,0.95939852]
[1746830138102,0.67280648,103030.0,103020.0,0.88812122]
[1746830141411,0.5741085,103030.0,103020.0,0.88811817]
[1746830141810,0.6453858,103030.0,103020.0,0.88811817]
[1746830142714,0.6765858,103030.0,103020.0,0.88811817]
[1746830143508,0.6765858,103030.0,103020.0,0.88811953]
[1746830145310,0.6765858,103030.0,103020.0,0.8881204]
[1746830146814,0.6775858,103030.0,103020.0,0.8851204]
[1746830147111,0.8375858,103030.0,103020.0,0.88506288]
[1746830147305,0.8385858,103030.0,103020.0,0.52226288]
[1746830147514,0.8375858,103030.0,103020.0,0.88306288]
[1746830147710,0.8375858,103030.0,103020.0,0.88406288]
[1746830147910,0.8365858,103030.0,103020.0,0.88406288]
[1746830148111,0.6765858,103030.0,103020.0,0.88406288]
[1746830149114,0.8365858,103030.0,103020.0,0.88406288]
[1746830150106,0.6053085,103030.0,103020.0,0.88406288]
[1746830150311,0.5741085,103030.0,103020.0,0.88606288]
[1746830150511,0.5741085,103030.0,103020.0,0.88806288]
[1746830152212,0.6054085,103030.0,103020.0,0.88806288]
[1746830153514,0.6766858,103030.0,103020.0,0.52726288]
[1746830153714,0.7079858,103030.0,103020.0,0.88806288]
[1746830154318,0.8679858,103030.0,103020.0,0.88806288]
[1746830158521,0.8999858,103030.0,103020.0,0.88806288]
[1746830159027,0.8999858,103030.0,103020.0,0.34764288]
[1746830160421,0.8999858,103030.0,103020.0,0.12071558]
[1746830161326,0.8999858,103030.0,103020.0,0.31484288]
[1746830161522,0.8999858,103030.0,103020.0,0.31485483]
[1746830162320,0.8999858,103030.0,103020.0,0.12072753]
[1746830164224,1.2607858,103030.0,103020.0,0.12072753]
[1746830164925,1.2680558,103030.0,103020.0,0.12072753]
[1746830165623,1.36675378,103030.0,103020.0,0.12072753]
[1746830167026,1.36675378,103030.0,103020.0,0.12074558]
[1746830168329,1.36675378,103030.0,103020.0,0.12074417]
[1746830168728,1.36675378,103030.0,103020.0,0.31487147]
[1746830169120,1.4903669,103030.0,103020.0,0.31487147]
[1746830169322,1.4903669,103030.0,103020.0,0.12074417]
[1746830170228,1.4903669,103030.0,103020.0,0.30016131]
[1746830170729,1.4903669,103030.0,103020.0,0.10603401]
[1746830171037,1.5616442,103030.0,103020.0,0.10403401]
[1746830171328,1.4933669,103030.0,103020.0,0.10403401]
[1746830172123,1.4933669,103030.0,103020.0,0.10103401]
[1746830172327,1.4963669,103030.0,103020.0,0.10103401]
[1746830172727,1.37275378,103030.0,103020.0,0.10103401]
[1746830173629,1.44403108,103030.0,103020.0,0.10103401]
[1746830174021,1.37275378,103030.0,103020.0,0.10480626]
[1746830175030,1.37275378,103030.0,103020.0,0.119842]
[1746830175230,1.44403108,103030.0,103020.0,0.119842]
[1746830175427,1.54109508,103030.0,103020.0,0.119842]
[1746830175629,1.54109508,103030.0,103020.0,0.10480626]
[1746830176433,1.56301022,103030.0,103020.0,0.10480626]
[1746830176624,1.46894622,103030.0,103020.0,0.10480626]
[1746830177729,1.58618622,103030.0,103020.0,0.10480626]
[1746830179933,1.6504417,103030.0,103020.0,0.10480626]
[1746830181029,1.5078871,103030.0,103020.0,0.10480626]
[1746830181234,1.6504417,103030.0,103020.0,0.10480626]
[1746830182036,1.2896417,103030.0,103020.0,0.10480626]
[1746830182227,2.0112417,103030.0,103020.0,0.10480626]
[1746830184033,2.0112417,103030.0,103020.0,0.13690626]
[1746830184334,1.9399644,103030.0,103020.0,0.13690626]
[1746830184526,2.0112417,103030.0,103020.0,0.13690626]
[1746830185136,1.9399644,103030.0,103020.0,0.16830626]
[1746830185629,2.0572044,103030.0,103020.0,0.20030626]
[1746830187438,1.9399644,103030.0,103020.0,0.20030626]
[1746830187935,1.2183644,103030.0,103020.0,0.20030626]
[1746830188234,1.5791644,103030.0,103020.0,0.20030626]
[1746830188637,1.70264142,103030.0,103020.0,0.20030626]
[1746830193637,1.5791644,103030.0,103020.0,0.20030626]
[1746830198246,1.5791644,103030.0,103020.0,0.21536316]
[1746830200344,1.5791644,103030.0,103020.0,0.20030626]
[1746830200550,1.5791644,103030.0,103020.0,0.21536392]
[1746830201648,1.6504417,103030.0,103020.0,0.21536392]
[1746830204753,1.5332017,103030.0,103020.0,0.21536392]
[1746830205049,1.6504017,103030.0,103020.0,0.21536392]
[1746830206756,1.5332017,103030.0,103020.0,0.21536392]
[1746830207052,1.4619244,103030.0,103020.0,0.21536392]
[1746830207445,1.5791244,103030.0,103020.0,0.21536392]
[1746830207852,1.5791244,103030.0,103020.0,0.21537662]
[1746830208457,1.4619244,103030.0,103020.0,0.21537662]
[1746830208841,1.5791244,103030.0,103020.0,0.21537662]
[1746830209652,1.5791244,103030.0,103020.0,0.21160437]
[1746830209854,1.53788734,103030.0,103020.0,0.21538183]
[1746830210041,1.65508734,103030.0,103020.0,0.21538183]
[1746830211155,1.53788734,103030.0,103020.0,0.21538183]
[1746830211450,1.65504734,103030.0,103020.0,0.21538183]
[1746830211760,1.72632464,103030.0,103020.0,0.21538158]
[1746830211947,1.60916464,103030.0,103020.0,0.21538158]
[1746830212149,1.72632464,103030.0,103020.0,0.21538158]
[1746830213357,1.72632464,103030.0,103020.0,0.20031147]
[1746830213557,1.72632464,103030.0,103020.0,0.21538379]
[1746830213855,1.60916464,103030.0,103020.0,0.21538379]
[1746830214050,1.72632464,103030.0,103020.0,0.21538379]
[1746830214350,1.60916464,103030.0,103020.0,0.21538379]
[1746830214557,1.72632464,103030.0,103020.0,0.21538379]
[1746830215156,1.60916464,103030.0,103020.0,0.21538379]
[1746830215356,1.72632464,103030.0,103020.0,0.21538379]
[1746830215557,1.65504734,103030.0,103020.0,0.21538379]
[1746830217060,1.65504734,103030.0,103020.0,0.21538667]
[1746830217262,1.50730605,103030.0,103020.0,0.21538667]
[1746830218161,1.34730605,103030.0,103020.0,0.21538667]
[1746830218660,1.23014605,103030.0,103020.0,0.21538667]
[1746830218861,0.73476875,103030.0,103020.0,0.84159127]
[1746830219056,0.77474605,103030.0,103020.0,0.93031397]
[1746830219360,0.77474605,103030.0,103020.0,0.92653651]
[1746830219562,0.80654605,103030.0,103020.0,0.92653651]
[1746830219859,0.80354605,103030.0,103020.0,0.92653651]
[1746830220054,0.80654605,103030.0,103020.0,0.92653651]
[1746830220261,0.80654605,103030.0,103020.0,0.57240921]
[1746830220562,0.83664605,103030.0,103020.0,0.76653651]
[1746830221462,0.80354605,103030.0,103020.0,0.76653651]
[1746830221762,0.72758311,103030.0,103020.0,0.76653651]
[1746830221953,0.72858311,103030.0,103020.0,0.76652359]
[1746830222459,0.72658311,103030.0,103020.0,0.76652359]
[1746830225056,0.88658311,103030.0,103020.0,0.76652359]
[1746830225361,1.0349965,103030.0,103020.0,0.76652359]
[1746830226163,1.0349965,103030.0,103020.0,0.40572359]
[1746830231265,1.0349965,103030.0,103020.0,0.76652359]
[1746830234467,1.0349965,103030.0,103020.0,0.76650987]
[1746830234662,1.1919132,103030.0,103020.0,0.76650987]
[1746830236276,1.1919132,103030.0,103020.0,0.76651054]
[1746830237777,1.1919132,103030.0,103020.0,0.57238324]
[1746830237968,1.1919132,103030.0,103020.0,0.76651054]
[1746830238167,1.0033725,103030.0,103020.0,0.76651054]
[1746830239878,1.0033725,103030.0,103020.0,0.76651167]
[1746830241372,0.9320952,103030.0,103020.0,0.76651167]
[1746830241567,1.0033725,103030.0,103020.0,0.76651167]
[1746830242676,1.0023725,103030.0,103020.0,0.76651167]
[1746830242876,1.0033725,103030.0,103020.0,0.76651167]
[1746830243067,1.0023725,103030.0,103020.0,0.76651167]
[1746830243272,1.0033725,103030.0,103020.0,0.76651167]
[1746830243472,1.0033725,103030.0,103020.0,0.76651601]
[1746830243772,0.6728867,103030.0,103020.0,0.95487331]
[1746830243977,0.6718867,103030.0,103020.0,1.31667331]
[1746830244171,0.8659952,103030.0,103020.0,1.31667331]
[1746830245281,0.8649952,103030.0,103020.0,1.30161861]
[1746830245577,0.8649952,103030.0,103020.0,1.31666375]
[1746830245779,0.8649952,103030.0,103020.0,1.31866375]
[1746830246381,0.84028185,103030.0,103020.0,1.31766375]
[1746830246578,0.84028185,103030.0,103020.0,1.32066375]
[1746830246980,0.84028185,103030.0,103020.0,1.24938645]
[1746830247181,0.84028185,103030.0,103020.0,1.32066375]
[1746830247583,0.84028185,103030.0,103020.0,1.24938645]
[1746830247787,0.87138185,103030.0,103020.0,1.24938645]
[1746830248481,0.87138185,103030.0,103020.0,0.52778645]
[1746830248681,0.87138185,103030.0,103020.0,1.24938645]
[1746830250686,0.87138185,103030.0,103020.0,1.24938298]
[1746830252680,0.94265915,103030.0,103020.0,1.24938298]
[1746830253086,0.87138185,103030.0,103020.0,1.24938298]
[1746830253585,0.94552345,103030.0,103020.0,1.24938298]
[1746830254977,0.97832345,103030.0,103020.0,1.24938298]
[1746830255686,0.97832345,103030.0,103020.0,1.23434131]
[1746830256586,0.90418185,103030.0,103020.0,1.24937901]
[1746830258090,0.90418185,103030.0,103020.0,1.24937867]
[1746830258387,0.90418185,103030.0,103020.0,1.24937877]
[1746830263487,0.90418185,103030.0,103020.0,1.23434131]
[1746830263684,0.90418185,103030.0,103020.0,1.24938083]
[1746830266687,0.90418185,103030.0,103020.0,1.32065813]
[1746830267091,0.90418185,103030.0,103020.0,1.30561861]
[1746830267293,0.90418185,103030.0,103020.0,1.3205989]
[1746830268897,0.87942185,103030.0,103020.0,1.3205989]
[1746830271795,0.87942185,103030.0,103020.0,1.2493216]
[1746830271997,0.87942185,103030.0,103020.0,1.3205989]
[1746830272696,0.90418185,103030.0,103020.0,1.3205989]
[1746830274796,0.90418185,103030.0,103020.0,0.5989989]
[1746830275003,0.90418185,103030.0,103020.0,1.3205989]
[1746830275402,1.02779855,103030.0,103020.0,1.3205989]
[1746830276101,1.02779855,103030.0,103020.0,1.32061563]
[1746830276602,1.02779855,103030.0,103020.0,1.24933833]
[1746830278903,0.96901045,103030.0,103020.0,1.24933833]
[1746830282712,0.99981045,103030.0,103020.0,1.24933588]
[1746830286216,0.99981045,103030.0,103020.0,1.24928369]
[1746830288022,0.99981045,103030.0,103020.0,1.24928294]
[1746830289731,1.09884328,103030.0,103020.0,1.24928294]
[1746830290022,1.09884328,103030.0,103020.0,1.24928238]
[1746830290424,1.09884328,103030.0,103020.0,1.24928235]
[1746830291727,1.09884328,103030.0,103020.0,1.24928175]
[1746830292930,1.17012058,103030.0,103020.0,1.24928175]
[1746830293526,1.17012058,103030.0,103020.0,1.18588301]
[1746830294529,1.17012058,103030.0,103020.0,1.18288301]
[1746830294733,1.17012058,103030.0,103020.0,1.18388301]
[1746830295226,1.17012058,103030.0,103020.0,1.16894131]
[1746830295432,1.17012058,103030.0,103020.0,1.18187041]
[1746830296126,1.09884328,103030.0,103020.0,1.18187041]
[1746830296429,0.99981045,103030.0,103020.0,1.21377041]
[1746830296617,1.07108775,103030.0,103020.0,1.21377041]
[1746830297130,1.07108775,103030.0,103020.0,0.49217041]
[1746830297330,1.07108775,103030.0,103020.0,0.85297041]
[1746830297923,1.07108775,103030.0,103020.0,0.73589041]
[1746830298129,1.07108775,103030.0,103020.0,0.85293041]
[1746830298830,1.07108775,103030.0,103020.0,0.85292951]
[1746830301929,1.07108775,103030.0,103020.0,0.88352951]
[1746830304039,0.99981045,103030.0,103020.0,0.88352951]
[1746830304232,1.07108775,103030.0,103020.0,0.88352951]
[1746830304540,0.99981045,103030.0,103020.0,0.88352951]
[1746830306037,0.99981045,103030.0,103020.0,0.88352634]
[1746830306634,0.80570195,103030.0,103020.0,0.95480364]
[1746830306827,0.55490195,103030.0,103020.0,0.96480364]
[1746830307023,0.52210195,103030.0,103020.0,0.96480364]
[1746830307936,0.71621045,103030.0,103020.0,0.96480364]
[1746830312645,0.77509124,103030.0,103020.0,0.96480364]
[1746830312845,0.58098274,103030.0,103020.0,0.96480364]
[1746830313142,0.58098274,103030.0,103020.0,0.96481235]
[1746830313343,0.77509124,103030.0,103020.0,0.96481235]
[1746830315444,0.58098274,103030.0,103020.0,0.96481235]
[1746830315745,0.77509124,103030.0,103020.0,0.96481235]
[1746830315941,0.65147454,103030.0,103020.0,0.96481235]
[1746830318743,0.65147454,103030.0,103020.0,0.96481245]
[1746830320350,0.65147454,103030.0,103020.0,0.96481267]
[1746830322148,0.68397454,103030.0,103020.0,0.96481267]
[1746830323054,0.84770602,103030.0,103020.0,0.96481267]
[1746830325751,0.68770602,103030.0,103020.0,0.96481267]
[1746830326650,0.64759124,103030.0,103020.0,0.96481267]
[1746830327148,0.45348274,103030.0,103020.0,0.96481267]
[1746830327450,0.64759124,103030.0,103020.0,0.96481267]
[1746830327853,0.64759124,103030.0,103020.0,0.96481457]
[1746830329460,0.64759124,103030.0,103020.0,0.94987861]
[1746830329647,0.64759124,103030.0,103020.0,0.96481497]
[1746830330454,0.64759124,103030.0,103020.0,0.60401497]
[1746830330656,0.64759124,103030.0,103020.0,1.32561497]
[1746830331056,0.52397454,103030.0,103020.0,1.32561497]
[1746830333156,0.52397454,103030.0,103020.0,1.3256164]
[1746830333358,0.55697454,103030.0,103020.0,1.3256164]
[1746830333555,0.55697454,103030.0,103020.0,1.2543391]
[1746830334959,0.55697454,103030.0,103020.0,1.25434042]
[1746830336768,0.55697454,103030.0,103020.0,1.25434318]
[1746830339067,0.7207059,103030.0,103020.0,1.25434318]
[1746830340268,0.7207059,103030.0,103020.0,1.23940131]
[1746830340460,0.7207059,103030.0,103020.0,1.25434332]
[1746830342469,0.7207059,103030.0,103020.0,0.53274332]
[1746830342769,0.68059124,103030.0,103020.0,1.25434332]
[1746830344767,0.68059124,103030.0,103020.0,1.32562062]
[1746830344968,0.38988274,103030.0,103020.0,1.38689792]
[1746830345163,0.38988274,103030.0,103020.0,1.71689792]
[1746830345867,0.2908867,103030.0,103020.0,1.71689792]
[1746830346870,0.2908867,103030.0,103020.0,1.71687589]
[1746830348673,0.2908867,103030.0,103020.0,1.71686738]
[1746830349268,0.16727,103030.0,103020.0,1.71686738]
[1746830349673,0.16727,103030.0,103020.0,1.81393138]
[1746830350375,0.16727,103030.0,103020.0,1.71686738]
[1746830350576,0.19947,103030.0,103020.0,1.71686239]
[1746830350768,0.19947,103030.0,103020.0,1.71686198]
[1746830351073,0.19947,103030.0,103020.0,1.38686198]
[1746830351275,0.19947,103030.0,103020.0,1.70686198]
[1746830354178,0.19947,103030.0,103020.0,1.7068571]
[1746830354878,0.19947,103030.0,103020.0,1.7168571]
[1746830357684,0.19947,103030.0,103020.0,1.71685424]
[1746830361290,0.19947,103030.0,103020.0,1.71685419]
[1746830363193,0.19947,103030.0,103020.0,1.71685494]
[1746830364889,0.19947,103030.0,103020.0,1.71685653]
[1746830366792,0.19947,103030.0,103020.0,1.71685934]
[1746830370290,0.19947,103030.0,103020.0,1.71686715]
[1746830371092,0.23187,103030.0,103020.0,1.71686715]
[1746830372195,0.23187,103030.0,103020.0,1.71687277]
[1746830373986,0.23187,103030.0,103020.0,1.7168816]
[1746830377496,0.23187,103030.0,103020.0,1.71689528]
[1746830382196,0.23187,103030.0,103020.0,1.70195591]
[1746830382993,0.23187,103030.0,103020.0,1.71689551]
[1746830390406,0.23187,103030.0,103020.0,1.71689831]
[1746830392209,0.23187,103030.0,103020.0,1.71689879]
[1746830394012,0.23187,103030.0,103020.0,1.71689906]
[1746830396604,0.30605484,103030.0,103020.0,1.71689906]
[1746830397612,0.30605484,103030.0,103020.0,1.71690029]
[1746830399324,0.30605484,103030.0,103020.0,1.71690031]
[1746830401035,0.30605484,103030.0,103020.0,1.71690023]
[1746830405631,0.23187,103030.0,103020.0,1.71690023]
[1746830407039,0.23187,103030.0,103020.0,0.99530023]
[1746830407332,0.23187,103030.0,103020.0,1.71690023]
[1746830407532,0.23187,103030.0,103020.0,0.99530023]
[1746830407838,0.26317,103030.0,103020.0,1.71690023]
[1746830408634,0.26317,103030.0,103020.0,1.64562293]
[1746830408935,0.26317,103030.0,103020.0,1.71690023]
[1746830409435,0.26317,103030.0,103020.0,1.64562293]
[1746830409634,0.26317,103030.0,103020.0,1.76230293]
[1746830409833,0.26317,103030.0,103020.0,1.83358023]
[1746830410437,0.37317,103030.0,103020.0,1.54358023]
[1746830410638,0.37317,103030.0,103020.0,1.35562293]
[1746830410839,0.37317,103030.0,103020.0,1.43230147]
[1746830411436,0.37317,103030.0,103020.0,1.43230183]
[1746830412738,0.37317,103030.0,103020.0,1.19858183]
[1746830412939,0.37317,103030.0,103020.0,1.43194183]
[1746830413237,0.44735484,103030.0,103020.0,1.43194183]
[1746830413835,0.44735484,103030.0,103020.0,1.80194183]
[1746830414141,0.44735484,103030.0,103020.0,1.43194183]
[1746830415438,0.44735484,103030.0,103020.0,1.41699861]
[1746830416036,0.44735484,103030.0,103020.0,1.4319407]
[1746830416538,0.37317,103030.0,103020.0,1.4319407]
[1746830417040,0.37317,103030.0,103020.0,1.43193957]
[1746830422445,0.7872785,103030.0,103020.0,1.36062227]
[1746830422638,0.7872785,103030.0,103020.0,1.29812227]
[1746830423039,0.59317,103030.0,103020.0,1.29812227]
[1746830423233,0.7872785,103030.0,103020.0,1.06480227]
[1746830423439,0.7872785,103030.0,103020.0,1.18148227]
[1746830424143,0.59317,103030.0,103020.0,1.18148227]
[1746830424845,0.66735484,103030.0,103020.0,1.18148227]